bitfinex/quotes_BTCUSD_20230103
["timestamp","ask_amount","ask_price","bid_price","bid_amount"]
[1672775281095,1.92635358,16660.0,16659.0,0.74300045]
[1672775281573,1.71101496,16660.0,16659.0,0.36497523]
[1672775281822,2.9193721,16660.0,16659.0,0.36497523]
[1672775284059,2.9193721,16660.0,16659.0,0.18467523]
[1672775284309,3.5358661,16660.0,16659.0,0.18467523]
[1672775284567,4.1361061,16660.0,16659.0,0.18467523]
[1672775285086,4.56688057,16660.0,16659.0,0.18467523]
[1672775285595,3.95038657,16660.0,16659.0,0.18467523]
[1672775285847,4.1361061,16660.0,16659.0,0.18467523]
[1672775286108,4.56688057,16660.0,16659.0,0.18467523]
[1672775286346,3.95038657,16660.0,16659.0,0.18467523]
[1672775286606,3.5358661,16660.0,16659.0,0.18467523]
[1672775286864,2.92774896,16660.0,16659.0,0.18467523]
[1672775287106,3.5358661,16660.0,16659.0,0.18467523]
[1672775287595,2.92774896,16660.0,16659.0,0.48344355]
[1672775288348,2.31125496,16660.0,16659.0,0.48344355]
[1672775288604,2.85146973,16660.0,16659.0,0.48344355]
[1672775288882,2.85146917,16660.0,16659.0,0.48344355]
[1672775289127,1.26608779,16660.0,16659.0,0.48344355]
[1672775289381,1.86632779,16660.0,16659.0,0.48344355]
[1672775289640,2.25122917,16660.0,16659.0,0.48344355]
[1672775290160,1.86632779,16660.0,16659.0,0.48344355]
[1672775291836,1.65098917,16660.0,16659.0,0.48344355]
[1672775293401,2.25122917,16660.0,16659.0,0.48344355]
[1672775293625,2.85146917,16660.0,16659.0,0.48344355]
[1672775293883,2.92774896,16660.0,16659.0,0.48344355]
[1672775295166,3.46776686,16660.0,16659.0,0.48344355]
[1672775295702,3.46776895,16660.0,16659.0,0.48344355]
[1672775295962,2.25103495,16660.0,16659.0,0.48344355]
[1672775297547,2.31125496,16660.0,16659.0,0.48344355]
[1672775297793,2.92774896,16660.0,16659.0,0.48344355]
[1672775298048,2.86753982,16660.0,16659.0,0.48344355]
[1672775298298,2.25104582,16660.0,16659.0,0.48344355]
[1672775301325,2.46638444,16660.0,16659.0,0.48344355]
[1672775301573,1.86614444,16660.0,16659.0,0.48344355]
[1672775302589,1.26590444,16660.0,16659.0,0.48344355]
[1672775303349,0.72587358,16660.0,16659.0,0.48344355]
[1672775303596,1.64017224,16660.0,16659.0,0.4833247]
[1672775303851,2.24041224,16660.0,16659.0,0.4833247]
[1672775304104,1.85551086,16660.0,16659.0,0.4833247]
[1672775304346,1.25527086,16660.0,16659.0,0.4833247]
[1672775304593,0.65503086,16660.0,16659.0,0.4833247]
[1672775307173,0.115,16660.0,16659.0,0.4833247]
[1672775308188,0.65503086,16660.0,16659.0,0.4833247]
[1672775308446,0.115,16660.0,16659.0,0.4833247]
[1672775310004,0.115,16660.0,16659.0,0.78168065]
[1672775310504,0.115,16660.0,16659.0,0.96198065]
[1672775311527,0.115,16660.0,16659.0,1.70204067]
[1672775311783,0.92492705,16660.0,16659.0,2.56672865]
[1672775312295,0.56494041,16660.0,16659.0,5.16593096]
[1672775312553,0.29497362,16660.0,16659.0,6.00767094]
[1672775313061,0.17997362,16660.0,16659.0,6.00467094]
[1672775313330,0.28397362,16660.0,16659.0,5.73983633]
[1672775313586,0.104,16660.0,16659.0,5.73983633]
[1672775313848,0.104,16660.0,16659.0,6.03875523]
[1672775314139,0.17997362,16660.0,16659.0,4.83475523]
[1672775314349,0.17997362,16660.0,16659.0,5.73475523]
[1672775314860,0.44994041,16660.0,16659.0,4.83475523]
[1672775315098,0.62993437,16660.0,16659.0,3.75295523]
[1672775315348,0.809833,16660.0,16659.0,3.75295523]
[1672775315601,0.819833,16660.0,16659.0,3.79416342]
[1672775316105,0.64993437,16660.0,16659.0,3.83516342]
[1672775316369,0.80992705,16660.0,16659.0,2.07196323]
[1672775316621,0.46095947,16660.0,16659.0,1.61027528]
[1672775316872,0.011,16660.0,16659.0,1.61027528]
[1672775317128,0.011,16660.0,16659.0,1.11048347]
[1672775317643,0.46089433,16660.0,16659.0,1.11048347]
[1672775318137,0.46089433,16660.0,16659.0,1.48025529]
[1672775319145,0.82079597,16660.0,16659.0,1.48025529]
[1672775320413,0.82079597,16660.0,16659.0,2.58053129]
[1672775321434,0.46089433,16660.0,16659.0,1.9800471]
[1672775322428,0.46089433,16660.0,16659.0,1.5800471]
[1672775323425,0.46089433,16660.0,16659.0,1.58025529]
[1672775323707,1.06113433,16660.0,16659.0,0.70177528]
[1672775324648,0.46089433,16660.0,16659.0,1.08688485]
[1672775324886,0.910819,16660.0,16659.0,1.08688485]
[1672775325135,1.36074288,16660.0,16659.0,1.08688485]
[1672775325903,1.36074288,16660.0,16659.0,1.58688485]
[1672775326149,1.36074288,16660.0,16659.0,2.18716085]
[1672775326425,1.36074288,16660.0,16659.0,1.58688485]
[1672775327148,1.36074288,16660.0,16659.0,1.58667666]
[1672775327402,1.36074288,16660.0,16659.0,1.58659277]
[1672775328659,0.910819,16660.0,16659.0,1.22599277]
[1672775328906,1.36080957,16660.0,16659.0,1.58569277]
[1672775329679,1.36080957,16660.0,16659.0,1.22599277]
[1672775329942,1.36080957,16660.0,16659.0,1.58529277]
[1672775330708,1.36080957,16660.0,16659.0,2.18577696]
[1672775331174,1.36080957,16660.0,16659.0,1.58550096]
[1672775331446,1.72080695,16660.0,16659.0,1.58550096]
[1672775331704,1.36080957,16660.0,16659.0,1.58550096]
[1672775332179,1.36080957,16660.0,16659.0,1.20059958]
[1672775332437,0.910819,16660.0,16659.0,1.20189958]
[1672775332688,0.910819,16660.0,16659.0,1.20169139]
[1672775332930,1.36082954,16660.0,16659.0,1.20169139]
[1672775333144,1.36082954,16660.0,16659.0,1.49623549]
[1672775336995,1.36082954,16660.0,16659.0,2.09651149]
[1672775338996,1.36082954,16660.0,16659.0,1.49623549]
[1672775340007,1.36082954,16660.0,16659.0,1.31593549]
[1672775340244,1.36082954,16660.0,16659.0,1.02139139]
[1672775340489,1.3607559,16660.0,16659.0,1.02139139]
[1672775340988,1.3607559,16660.0,16659.0,1.31609505]
[1672775341245,1.3607559,16660.0,16659.0,1.02139139]
[1672775341758,1.3607559,16660.0,16659.0,1.31613339]
[1672775342024,1.3607559,16660.0,16659.0,1.31616709]
[1672775343320,1.72086629,16660.0,16659.0,1.31616709]
[1672775343562,1.72087129,16660.0,16659.0,1.31616709]
[1672775344053,1.3607559,16660.0,16659.0,1.91644309]
[1672775344296,1.3607559,16660.0,16659.0,1.31616709]
[1672775344811,0.91074536,16660.0,16659.0,1.02139139]
[1672775345301,1.360908,16660.0,16659.0,1.02139139]
[1672775345822,0.91074536,16660.0,16659.0,1.02139139]
[1672775346546,0.91074536,16660.0,16659.0,0.52139139]
[1672775346828,0.91074536,16660.0,16659.0,0.22247249]
[1672775346829,1.89588674,16660.0,16659.0,0.22247249]
[1672775347079,3.0361576,16660.0,16659.0,0.22247249]
[1672775347315,1.8356776,16660.0,16659.0,0.22247249]
[1672775348081,1.45077622,16660.0,16659.0,0.22247249]
[1672775348592,1.45077622,16660.0,16659.0,0.51940952]
[1672775350948,0.91074536,16660.0,16659.0,0.81395476]
[1672775351929,0.91074536,16660.0,16659.0,1.31395476]
[1672775352174,0.91074536,16660.0,16659.0,1.51828676]
[1672775352425,0.91074536,16660.0,16659.0,1.31395476]
[1672775352951,0.91074536,16660.0,16659.0,1.01940952]
[1672775353472,0.91074536,16660.0,16659.0,0.51953174]
[1672775353473,1.45077622,16660.0,16659.0,0.51953174]
[1672775353964,1.44927622,16660.0,16659.0,0.51953174]
[1672775354221,1.8341776,16660.0,16659.0,0.51953174]
[1672775354465,1.44927622,16660.0,16659.0,0.51953174]
[1672775355480,1.8341776,16660.0,16659.0,0.51953174]
[1672775355738,1.44927622,16660.0,16659.0,1.11980774]
[1672775355983,1.44927622,16660.0,16659.0,0.51953174]
[1672775357016,1.44927622,16660.0,16659.0,0.8139509]
[1672775359036,1.44927622,16660.0,16659.0,1.4142269]
[1672775360280,1.44927622,16660.0,16659.0,0.81411501]
[1672775360556,1.44927622,16660.0,16659.0,0.51953174]
[1672775360814,0.90924536,16660.0,16659.0,0.51953174]
[1672775361088,0.90924536,16660.0,16659.0,1.41435728]
[1672775361321,0.90924536,16660.0,16659.0,0.81408128]
[1672775362320,0.90924536,16660.0,16659.0,1.41435728]
[1672775363913,0.90924536,16660.0,16659.0,0.81408128]
[1672775364572,0.90924536,16660.0,16659.0,0.51953174]
[1672775365326,1.44927622,16660.0,16659.0,0.51953174]
[1672775366600,1.44927622,16660.0,16659.0,0.51967527]
[1672775368483,2.04951622,16660.0,16659.0,0.51967527]
[1672775369192,1.8341776,16660.0,16659.0,0.51967527]
[1672775369449,2.4344176,16660.0,16659.0,0.51967527]
[1672775369702,2.4506716,16660.0,16659.0,0.51967527]
[1672775369948,2.06577022,16660.0,16659.0,0.51967527]
[1672775370197,1.44927622,16660.0,16659.0,0.51967527]
[1672775371031,1.44927622,16660.0,16659.0,0.81422158]
[1672775371353,1.44927622,16660.0,16659.0,1.41449758]
[1672775371787,1.44927622,16660.0,16659.0,2.01477358]
[1672775372043,0.90924536,16660.0,16659.0,1.41449758]
[1672775372287,0.90924536,16660.0,16659.0,1.61882958]
[1672775372796,0.90924536,16660.0,16659.0,2.21910558]
[1672775373045,0.90924536,16660.0,16659.0,1.79912958]
[1672775374035,0.90924536,16660.0,16659.0,1.59479758]
[1672775374282,1.35964732,16660.0,16659.0,1.79912958]
[1672775376031,1.35964732,16660.0,16659.0,0.99452158]
[1672775376285,1.35964732,16660.0,16659.0,1.19885358]
[1672775376532,1.35964732,16660.0,16659.0,2.39940558]
[1672775377228,1.35964732,16660.0,16659.0,2.39930932]
[1672775379000,1.71993206,16660.0,16659.0,2.39930932]
[1672775379757,1.71993206,16660.0,16659.0,2.19497732]
[1672775381556,1.35964732,16660.0,16659.0,2.19497732]
[1672775381811,1.35964732,16660.0,16659.0,1.59470132]
[1672775382077,1.35964732,16660.0,16659.0,1.79903332]
[1672775382317,1.35964732,16660.0,16659.0,1.59470132]
[1672775383045,1.35964732,16660.0,16659.0,2.19497732]
[1672775385591,1.35964732,16660.0,16659.0,2.4269128]
[1672775385592,1.71977256,16660.0,16659.0,2.4269128]
[1672775385847,1.71977256,16660.0,16659.0,2.7269128]
[1672775385848,1.53964312,16660.0,16659.0,2.7269128]
[1672775386094,1.53964312,16660.0,16659.0,3.87127939]
[1672775386339,1.53964312,16660.0,16659.0,4.18169837]
[1672775386583,1.26947065,16660.0,16659.0,4.18169837]
[1672775389359,1.08935802,16660.0,16659.0,4.18169837]
[1672775389629,1.08935802,16660.0,16659.0,4.95307939]
[1672775390150,1.08935802,16660.0,16659.0,4.18415033]
[1672775390672,1.08935802,16660.0,16659.0,3.87127939]
[1672775391222,1.08935802,16660.0,16659.0,4.22770886]
[1672775391488,1.08935802,16660.0,16659.0,3.87127939]
[1672775391778,1.08935802,16660.0,16659.0,4.21406]
[1672775392034,1.08935802,16660.0,16659.0,3.87127939]
[1672775392577,1.08935802,16660.0,16659.0,4.23889731]
[1672775392841,1.08935802,16660.0,16659.0,4.16237094]
[1672775393099,1.08935802,16660.0,16659.0,3.87127939]
[1672775395495,1.08935802,16660.0,16659.0,4.57127939]
[1672775396956,1.1123489,16660.0,16659.0,4.57127939]
[1672775397975,1.1123489,16660.0,16659.0,7.51632657]
[1672775398242,1.1123489,16660.0,16659.0,8.40263154]
[1672775398765,1.11223315,16660.0,16659.0,8.40263154]
[1672775399778,1.11223315,16660.0,16659.0,7.78662227]
[1672775400030,1.11223315,16660.0,16659.0,6.43452657]
[1672775401582,1.11223315,16660.0,16659.0,6.70482227]
[1672775402085,1.11223315,16660.0,16659.0,6.43452657]
[1672775402604,1.11223315,16660.0,16659.0,6.70482227]
[1672775402897,1.11223315,16660.0,16659.0,7.32067476]
[1672775403081,1.11223315,16660.0,16659.0,7.32067365]
[1672775403538,1.11223315,16660.0,16659.0,7.32066945]
[1672775403836,1.11223315,16660.0,16659.0,6.43452657]
[1672775404641,1.10278843,16660.0,16659.0,6.25432943]
[1672775404892,1.10278843,16660.0,16659.0,6.43452657]
[1672775405476,1.10278843,16660.0,16659.0,6.25432943]
[1672775406441,1.10278843,16660.0,16659.0,6.5427561]
[1672775406687,0.20310354,16660.0,16659.0,6.25432943]
[1672775406954,0.20310354,16660.0,16659.0,5.17182943]
[1672775407214,0.20310354,16660.0,16659.0,5.29255935]
[1672775407484,0.20310354,16660.0,16659.0,4.99152943]
[1672775408749,0.20310354,16660.0,16659.0,4.70410824]
[1672775408750,0.44316356,16660.0,16659.0,4.70410824]
[1672775409002,0.20310354,16660.0,16659.0,4.70410824]
[1672775409755,0.20310354,16660.0,16659.0,4.70431643]
[1672775410483,0.20310354,16660.0,16659.0,4.52461643]
[1672775410992,0.20310354,16660.0,16659.0,4.57278013]
[1672775411751,0.20310354,16660.0,16659.0,4.50591094]
[1672775411994,0.20310354,16660.0,16659.0,4.21188758]
[1672775412241,0.20310354,16660.0,16659.0,4.5147945]
[1672775412995,0.20310354,16660.0,16659.0,4.21188758]
[1672775413259,0.20310354,16660.0,16659.0,4.51197758]
[1672775414059,0.20310354,16660.0,16659.0,4.85723341]
[1672775414321,0.20310354,16660.0,16659.0,4.51197758]
[1672775415324,0.20310354,16660.0,16659.0,4.84982148]
[1672775415845,0.20310354,16660.0,16659.0,4.51197758]
[1672775416599,0.20310354,16660.0,16659.0,4.87507112]
[1672775416851,0.20310354,16660.0,16659.0,4.51197758]
[1672775417365,0.20310354,16660.0,16659.0,4.79249155]
[1672775417626,0.20310354,16660.0,16659.0,4.51197758]
[1672775417875,0.20310354,16660.0,16659.0,4.78942904]
[1672775418129,0.20310354,16660.0,16659.0,4.51197758]
[1672775418644,0.20310354,16660.0,16659.0,4.69227758]
[1672775418901,0.20310354,16660.0,16659.0,5.29242762]
[1672775419158,0.20310354,16660.0,16659.0,5.47262476]
[1672775419662,0.20310354,16660.0,16659.0,5.65292476]
[1672775419919,0.20310354,16660.0,16659.0,6.51220439]
[1672775420171,0.20310354,16660.0,16659.0,6.69083972]
[1672775420670,0.20310354,16660.0,16659.0,6.51155554]
[1672775421425,0.13872549,16660.0,16659.0,6.87038801]
[1672775421675,0.11761298,16660.0,16659.0,6.69083972]
[1672775424633,0.11761298,16660.0,16659.0,5.922666]
[1672775424858,0.11761298,16660.0,16659.0,5.6523703]
[1672775425106,0.11761298,16660.0,16659.0,6.51249775]
[1672775425350,0.11761298,16660.0,16659.0,6.51245775]
[1672775426400,0.11761298,16660.0,16659.0,5.10784285]
[1672775427169,0.11761298,16660.0,16659.0,4.8136839]
[1672775427424,0.11761298,16660.0,16659.0,4.6093519]
[1672775427700,0.11761298,16660.0,16659.0,4.9093519]
[1672775427953,0.11761298,16660.0,16659.0,5.40362415]
[1672775428715,0.11761298,16660.0,16659.0,5.58326683]
[1672775429244,0.11761298,16660.0,16659.0,5.40362415]
[1672775429765,0.11761298,16660.0,16659.0,5.2925839]
[1672775430012,0.11761298,16660.0,16659.0,5.47222658]
[1672775430760,0.11761298,16660.0,16659.0,5.58015571]
[1672775433054,0.11761298,16660.0,16659.0,5.2925839]
[1672775433360,0.11761298,16660.0,16659.0,5.66968119]
[1672775434335,0.11761298,16660.0,16659.0,5.66973119]
[1672775434594,0.11761298,16660.0,16659.0,5.2926339]
[1672775434857,0.11761298,16660.0,16659.0,5.66210354]
[1672775436598,0.11761298,16660.0,16659.0,5.2926339]
[1672775437102,0.11761298,16660.0,16659.0,5.07227658]
[1672775437885,0.11761298,16660.0,16659.0,5.92481673]
[1672775438126,0.11761298,16660.0,16659.0,6.32481673]
[1672775438889,0.11761298,16660.0,16659.0,6.324812]
[1672775440183,0.11761298,16660.0,16659.0,6.86449893]
[1672775440700,0.11761298,16660.0,16659.0,6.50566646]
[1672775441705,0.11761298,16660.0,16659.0,6.86498999]
[1672775442198,0.11761298,16660.0,16659.0,6.88297159]
[1672775442457,0.11761298,16660.0,16659.0,6.52364806]
[1672775443555,0.11761298,16660.0,16659.0,6.88293919]
[1672775445772,0.07915981,16660.0,16659.0,6.88293919]
[1672775446071,0.03337546,16660.0,16659.0,6.88293919]
[1672775447758,0.03337546,16660.0,16659.0,6.86495759]
[1672775448002,0.03337546,16660.0,16659.0,6.6839479]
[1672775448254,0.03337546,16660.0,16659.0,6.50432708]
[1672775448789,0.03337546,16660.0,16659.0,5.92208736]
[1672775449306,0.03337546,16660.0,16659.0,5.65260421]
[1672775449526,0.03337546,16660.0,16659.0,5.92208736]
[1672775450546,0.03337546,16660.0,16659.0,5.8268424]
[1672775451177,0.03337546,16660.0,16659.0,5.64717209]
[1672775451835,0.03337546,16660.0,16659.0,5.2926339]
[1672775452569,0.03337546,16660.0,16659.0,5.66711723]
[1672775453570,0.03337546,16660.0,16659.0,5.2926339]
[1672775453831,0.03337546,16660.0,16659.0,5.62851566]
[1672775454325,0.03337546,16660.0,16659.0,5.2926339]
[1672775455580,0.03337546,16660.0,16659.0,5.47230421]
[1672775456583,0.03337546,16660.0,16659.0,5.84171715]
[1672775457085,0.03337546,16660.0,16659.0,5.66204684]
[1672775460329,0.03337546,16660.0,16659.0,5.48314684]
[1672775460820,0.03337546,16660.0,16659.0,5.27881484]
[1672775462615,0.21348809,16660.0,16659.0,3.80180406]
[1672775463093,0.21348809,16660.0,16659.0,3.20152806]
[1672775463351,0.21348809,16660.0,16659.0,3.80180406]
[1672775463564,0.21348809,16660.0,16659.0,3.80218644]
[1672775463847,0.21348809,16660.0,16659.0,4.4823342]
[1672775464102,0.03337546,16660.0,16659.0,4.1823342]
[1672775464617,0.21348809,16660.0,16659.0,2.70147706]
[1672775464873,0.21348809,16660.0,16659.0,2.3213293]
[1672775465634,0.21348809,16660.0,16659.0,2.9216053]
[1672775465887,0.21348809,16660.0,16659.0,3.30171895]
[1672775466154,0.21348809,16660.0,16659.0,2.9216053]
[1672775466397,0.21348809,16660.0,16659.0,2.3213293]
[1672775466656,0.21348809,16660.0,16659.0,2.9216053]
[1672775467166,0.21348809,16660.0,16659.0,3.30168608]
[1672775467435,0.21348809,16660.0,16659.0,3.58181054]
[1672775468175,0.03337546,16660.0,16659.0,3.30168608]
[1672775468916,0.03337546,16660.0,16659.0,2.93227314]
[1672775469160,0.03337546,16660.0,16659.0,3.51151943]
[1672775469382,0.03337546,16660.0,16659.0,3.71585143]
[1672775470636,0.03337546,16660.0,16659.0,3.89615143]
[1672775471136,0.03337546,16660.0,16659.0,4.25558143]
[1672775471642,0.03337546,16660.0,16659.0,3.65530543]
[1672775471902,0.03337546,16660.0,16659.0,4.25558143]
[1672775472662,0.03337546,16660.0,16659.0,3.89615143]
[1672775473420,0.03337546,16660.0,16659.0,3.7532069]
[1672775473669,0.21348809,16660.0,16659.0,1.39163845]
[1672775473912,0.48366056,16660.0,16659.0,1.99191445]
[1672775474163,0.8643002,16660.0,16659.0,1.99191445]
[1672775474412,0.21348809,16660.0,16659.0,1.99191445]
[1672775474938,0.21348809,16660.0,16659.0,2.97197665]
[1672775475213,0.21348809,16660.0,16659.0,1.99191445]
[1672775475724,0.03337546,16660.0,16659.0,2.95227202]
[1672775475977,0.03337546,16660.0,16659.0,3.75688002]
[1672775476257,0.03337546,16660.0,16659.0,3.15660402]
[1672775476474,0.03337546,16660.0,16659.0,3.55254802]
[1672775476688,0.03337546,16660.0,16659.0,2.95227202]
[1672775477177,0.03337546,16660.0,16659.0,2.9526544]
[1672775477953,0.03337546,16660.0,16659.0,3.1569864]
[1672775478457,0.03337546,16660.0,16659.0,3.7572624]
[1672775480290,0.03337546,16660.0,16659.0,3.1569864]
[1672775480551,0.03337546,16660.0,16659.0,2.85660402]
[1672775480822,0.21348809,16660.0,16659.0,0.79136245]
[1672775481077,0.8643002,16660.0,16659.0,0.79136245]
[1672775481374,1.4807942,16660.0,16659.0,0.79136245]
[1672775481636,0.8643002,16660.0,16659.0,0.79136245]
[1672775482935,0.8643002,16660.0,16659.0,1.39163845]
[1672775483190,0.48366056,16660.0,16659.0,1.39163845]
[1672775483441,0.48366056,16660.0,16659.0,1.99229683]
[1672775483979,0.48366056,16660.0,16659.0,0.79136245]
[1672775484235,1.66092364,16660.0,16659.0,0.79136245]
[1672775484472,2.44139313,16660.0,16659.0,0.79136245]
[1672775484729,1.84115313,16660.0,16659.0,0.79136245]
[1672775484975,1.22465913,16660.0,16659.0,0.79136245]
[1672775485248,2.1109919,16660.0,16659.0,0.79136245]
[1672775485513,1.84115313,16660.0,16659.0,0.79136245]
[1672775485751,1.66060314,16660.0,16659.0,0.79136245]
[1672775486527,2.44139313,16660.0,16659.0,0.44222869]
[1672775486782,3.27315525,16660.0,16659.0,0.04222869]
[1672775487538,3.87339525,16660.0,16659.0,0.04222869]
[1672775488284,3.27315525,16660.0,16659.0,0.04222869]
[1672775489830,2.73312439,16660.0,16659.0,0.04261107]
[1672775490082,3.04025925,16660.0,16659.0,0.42515284]
[1672775490592,2.44001925,16660.0,16659.0,0.42515284]
[1672775490854,1.22328525,16660.0,16659.0,0.42515284]
[1672775491855,1.4930217,16660.0,16659.0,0.42515284]
[1672775492101,1.49301955,16660.0,16659.0,0.42515284]
[1672775492340,1.04341827,16660.0,16659.0,0.42515284]
[1672775493085,1.49301879,16660.0,16659.0,0.42515284]
[1672775493340,1.22328525,16660.0,16659.0,0.42515284]
[1672775494344,1.04342161,16660.0,16659.0,0.42515284]
[1672775494605,0.66278197,16660.0,16659.0,0.42515284]
[1672775494864,0.66278197,16660.0,16659.0,2.50611484]
[1672775495129,0.66278197,16660.0,16659.0,2.71044684]
[1672775495130,0.48293169,16660.0,16659.0,2.71044684]
[1672775495404,0.84260132,16660.0,16659.0,1.90583884]
[1672775495600,0.48293169,16660.0,16659.0,1.90583884]
[1672775495853,0.84260132,16660.0,16659.0,1.90583884]
[1672775496105,0.48293169,16660.0,16659.0,1.90583884]
[1672775496348,0.84260132,16660.0,16659.0,1.90583884]
[1672775496594,0.48293169,16660.0,16659.0,2.71044684]
[1672775497385,0.48293169,16660.0,16659.0,2.71045684]
[1672775498132,0.48293169,16660.0,16659.0,3.07219963]
[1672775498388,0.48293169,16660.0,16659.0,2.41033684]
[1672775498646,0.48293169,16660.0,16659.0,2.20600484]
[1672775499645,0.84260132,16660.0,16659.0,2.41033684]
[1672775500139,0.84260132,16660.0,16659.0,2.20600484]
[1672775500384,0.84260132,16660.0,16659.0,2.20590145]
[1672775500669,0.66278197,16660.0,16659.0,2.20590145]
[1672775501415,0.66278197,16660.0,16659.0,1.90575545]
[1672775501722,0.66278197,16660.0,16659.0,2.11008745]
[1672775502159,0.66278197,16660.0,16659.0,1.90575545]
[1672775502907,1.11238249,16660.0,16659.0,1.30547945]
[1672775503158,1.22328525,16660.0,16659.0,1.30547945]
[1672775503643,0.84264561,16660.0,16659.0,1.30547945]
[1672775503901,1.22328525,16660.0,16659.0,0.9225553]
[1672775504675,0.86361562,16660.0,16659.0,0.9225553]
[1672775505420,0.86361562,16660.0,16659.0,1.29537811]
[1672775505680,0.84285078,16660.0,16659.0,1.29537811]
[1672775506199,1.22349042,16660.0,16659.0,1.29537811]
[1672775506982,1.21310584,16660.0,16659.0,1.29537811]
[1672775507197,0.8324662,16660.0,16659.0,1.29537811]
[1672775507452,1.21310584,16660.0,16659.0,1.29537811]
[1672775507712,0.8324662,16660.0,16659.0,1.29537811]
[1672775508208,1.21310584,16660.0,16659.0,1.11507811]
[1672775508704,1.82962017,16660.0,16659.0,1.11507811]
[1672775509221,1.21312617,16660.0,16659.0,1.11507811]
[1672775509444,0.85323104,16660.0,16659.0,1.11507811]
[1672775510772,1.21316457,16660.0,16659.0,1.11507811]
[1672775511275,0.85323104,16660.0,16659.0,0.82344811]
[1672775512058,0.85362777,16660.0,16659.0,0.82344811]
[1672775513744,0.40363052,16660.0,16659.0,0.82344811]
[1672775514259,0.40363052,16660.0,16659.0,0.4506253]
[1672775514532,0.40363052,16660.0,16659.0,0.4421253]
[1672775514789,0.94366138,16660.0,16659.0,0.4421253]
[1672775515073,1.54390138,16660.0,16659.0,0.4421253]
[1672775515616,2.16039538,16660.0,16659.0,0.4421253]
[1672775516631,2.16039538,16660.0,16659.0,0.0421253]
[1672775516886,2.76063538,16660.0,16659.0,0.0421253]
[1672775519181,2.16039538,16660.0,16659.0,0.0421253]
[1672775519446,2.16039538,16660.0,16659.0,0.41806622]
[1672775519727,2.16039538,16660.0,16659.0,0.41768384]
[1672775521782,2.76063538,16660.0,16659.0,0.0421253]
[1672775523004,2.76063538,16660.0,16659.0,0.04205583]
[1672775523500,1.56015538,16660.0,16659.0,0.04205583]
[1672775523770,2.76063538,16660.0,16659.0,0.04205583]
[1672775524034,2.82084452,16660.0,16659.0,0.04205583]
[1672775524797,2.22060452,16660.0,16659.0,0.04205583]
[1672775525048,2.76074032,16660.0,16659.0,0.04205583]
[1672775525809,2.76074032,16660.0,16659.0,0.35656817]
[1672775525810,2.16050032,16660.0,16659.0,0.35656817]
[1672775526066,1.56026032,16660.0,16659.0,0.35656817]
[1672775526326,0.94376632,16660.0,16659.0,0.35656817]
[1672775527098,1.54400632,16660.0,16659.0,0.35656817]
[1672775527361,0.94376632,16660.0,16659.0,0.35656817]
[1672775527607,2.16050032,16660.0,16659.0,0.35656817]
[1672775527861,1.62036452,16660.0,16659.0,0.35695055]
[1672775528365,1.62036452,16660.0,16659.0,0.35656817]
[1672775528607,2.16050032,16660.0,16659.0,0.35656817]
[1672775529352,1.62036452,16660.0,16659.0,0.35656817]
[1672775529608,2.16050032,16660.0,16659.0,0.35656817]
[1672775529876,1.00387052,16660.0,16659.0,0.35656817]
[1672775530127,0.40363052,16660.0,16659.0,0.35656817]
[1672775531928,0.40363052,16660.0,16659.0,0.35695055]
[1672775532703,0.40363052,16660.0,16659.0,0.35656817]
[1672775532956,1.00387052,16660.0,16659.0,0.35656817]
[1672775533225,1.62036452,16660.0,16659.0,0.35656817]
[1672775533534,2.22060452,16660.0,16659.0,0.35656817]
[1672775533764,2.22060452,16660.0,16659.0,0.35618802]
[1672775534005,1.62036452,16660.0,16659.0,0.04167568]
[1672775534270,2.16050032,16660.0,16659.0,0.04167568]
[1672775534524,2.16050032,16660.0,16659.0,0.04206878]
[1672775534776,1.54400632,16660.0,16659.0,0.04206878]
[1672775535094,0.94376632,16660.0,16659.0,0.04206878]
[1672775535322,1.54400632,16660.0,16659.0,0.04206878]
[1672775535580,1.56026032,16660.0,16659.0,0.04206878]
[1672775535830,0.94376632,16660.0,16659.0,0.04206878]
[1672775536612,0.94376632,16660.0,16659.0,0.04245116]
[1672775537381,0.94376632,16660.0,16659.0,0.04206878]
[1672775537638,1.56026032,16660.0,16659.0,0.04206878]
[1672775538408,0.94376632,16660.0,16659.0,0.04206878]
[1672775538695,1.00387052,16660.0,16659.0,0.3531852]
[1672775538942,1.00387052,16660.0,16659.0,0.35356758]
[1672775539451,1.00387052,16660.0,16659.0,0.3531852]
[1672775539701,1.02012452,16660.0,16659.0,0.3121852]
[1672775540045,1.00387052,16660.0,16659.0,0.3121852]
[1672775540475,2.22060452,16660.0,16659.0,0.3121852]
[1672775540732,2.76874032,16660.0,16659.0,0.31256758]
[1672775540992,1.02012452,16660.0,16659.0,0.3121852]
[1672775541497,0.41163052,16660.0,16659.0,0.3121852]
[1672775541760,0.41963052,16660.0,16659.0,0.3121852]
[1672775542038,0.41963052,16660.0,16659.0,0.31256758]
[1672775542287,0.95976632,16660.0,16659.0,0.3121852]
[1672775542815,1.97913988,16660.0,16659.0,0.00106878]
[1672775543056,2.59563388,16660.0,16659.0,0.00106878]
[1672775543311,2.59563388,16660.0,16659.0,0.00100291]
[1672775544085,2.57963388,16660.0,16659.0,0.00100291]
[1672775544337,2.58763388,16660.0,16659.0,0.00100291]
[1672775544869,1.56853039,16660.0,16659.0,0.36436677]
[1672775545144,1.55227639,16660.0,16659.0,0.36436677]
[1672775545395,0.95203639,16660.0,16659.0,0.36398439]
[1672775545644,1.16363675,16660.0,16659.0,0.36398439]
[1672775545901,1.01187052,16660.0,16659.0,0.36398439]
[1672775546469,1.55227639,16660.0,16659.0,0.36398439]
[1672775546683,2.15251639,16660.0,16659.0,0.00100291]
[1672775546928,2.76901039,16660.0,16659.0,0.00100291]
[1672775548430,2.22860452,16660.0,16659.0,0.00100291]
[1672775550465,3.85732168,16660.0,16659.0,0.00100291]
[1672775550772,4.08761427,16660.0,16659.0,0.00100291]
[1672775551033,4.08734469,16660.0,16659.0,0.00100291]
[1672775551295,3.98404854,16660.0,16659.0,0.00100291]
[1672775551566,3.97604854,16660.0,16659.0,0.00100291]
[1672775552345,3.97604854,16660.0,16659.0,0.01000291]
[1672775552346,3.35227001,16660.0,16659.0,0.01000291]
[1672775552871,3.95995791,16660.0,16659.0,0.01000291]
[1672775553124,3.02854452,16660.0,16659.0,0.01000291]
[1672775554160,3.20834452,16660.0,16659.0,0.01000291]
[1672775554437,3.92754083,16660.0,16659.0,0.00347111]
[1672775554668,3.92754083,16660.0,16659.0,0.0040333]
[1672775555481,4.53506997,16660.0,16659.0,0.0040333]
[1672775555698,5.0075485,16660.0,16659.0,0.0040333]
[1672775555961,4.54268194,16660.0,16659.0,0.0040333]
[1672775556458,4.1620423,16660.0,16659.0,0.0040333]
[1672775557702,3.69499668,16660.0,16659.0,0.0040333]
[1672775557959,4.00391451,16660.0,16659.0,0.0040333]
[1672775561905,3.39638537,16660.0,16659.0,0.0040333]
[1672775563164,2.77989137,16660.0,16659.0,0.0040333]
[1672775563911,3.39638537,16660.0,16659.0,0.0040333]
[1672775564686,2.77989137,16660.0,16659.0,0.0040333]
[1672775565412,3.31965301,16660.0,16659.0,0.0040333]
[1672775566931,3.93614701,16660.0,16659.0,0.0040333]
[1672775567417,3.31965301,16660.0,16659.0,0.0040333]